bitfinex-derivatives/quotes_SOLF0:USTF0_20250310
["timestamp","ask_amount","ask_price","bid_price","bid_amount"]
[1741596930293,0.05098907,126.17,126.15,0.05529999]
[1741596930594,7.97618907,126.17,126.15,0.05529999]
[1741596930788,0.05098907,126.17,126.15,0.05529999]
[1741596931192,0.05098907,126.17,126.15,20.25033449]
[1741596931989,0.05098907,126.17,126.16,7.9254]
[1741596932188,177.1032,126.21,126.16,20.1950345]
[1741596932590,185.0259,126.21,126.16,20.1950345]
[1741596932895,177.1032,126.21,126.16,20.1950345]
[1741596933394,7.98317657,126.2,126.16,20.1950345]
[1741596933588,0.05987657,126.2,126.16,20.1950345]
[1741596934096,7.9237,126.19,126.16,28.1201345]
[1741596934296,0.05987657,126.2,126.16,28.1201345]
[1741596934784,7.9236,126.19,126.16,28.1201345]
[1741596935390,0.05987657,126.2,126.16,28.1201345]
[1741596935586,0.05987657,126.2,126.16,20.1950345]
[1741596935587,7.98307657,126.2,126.16,20.1950345]
[1741596935786,0.05987657,126.2,126.16,20.1950345]
[1741596936301,7.9236,126.19,126.16,28.1202345]
[1741596936897,7.9243,126.18,126.15,7.98109999]
[1741596937085,0.05987657,126.2,126.15,0.05529999]
[1741596937486,2.99097657,126.2,126.15,0.05529999]
[1741596937687,23.18601107,126.2,126.15,0.05529999]
[1741596938200,23.18601107,126.2,126.1,10.7942]
[1741596938499,7.9277,126.13,126.1,2.8652]
[1741596939099,7.98777394,126.13,126.1,0.05243503]
[1741596939497,0.06007394,126.13,126.1,7.98103503]
[1741596940200,7.98777394,126.13,126.1,0.05243503]
[1741596940603,0.06007394,126.13,126.1,0.05243503]
[1741596940803,7.98767394,126.13,126.1,0.05243503]
[1741596941002,0.06007394,126.13,126.1,0.05243503]
[1741596941208,7.9286,126.11,126.1,0.05243503]
[1741596941406,0.06007394,126.13,126.1,0.05243503]
[1741596941704,7.98737394,126.13,126.1,0.05243503]
[1741596942200,0.06007394,126.13,126.1,7.98123503]
[1741596943201,0.06007394,126.13,126.1,0.05243503]
[1741596943808,0.06007394,126.13,126.12,7.928]
[1741596944008,0.06007394,126.13,126.1,0.05243503]
[1741596945500,7.9283,126.12,126.1,0.05243503]
[1741596945702,0.06007394,126.13,126.1,0.05243503]
[1741596946299,7.9286,126.11,126.1,0.05243503]
[1741596947802,7.9303,126.09,126.05,22.4652345]
[1741596948000,182.2903,126.09,126.05,22.4652345]
[1741596948205,174.36,126.09,126.05,22.4652345]
[1741596948803,174.36,126.09,126.05,30.3970345]
[1741596949008,0.05346408,126.08,126.06,0.05660086]
[1741596951402,0.05346408,126.08,126.06,7.98800086]
[1741596951709,0.05346408,126.08,126.07,20.1950345]
[1741596952305,0.05346408,126.08,126.06,0.05660086]
[1741596952510,0.05346408,126.08,126.07,28.1261345]
[1741596952707,0.05346408,126.08,126.07,20.1950345]
[1741596953312,0.05346408,126.08,126.06,0.05660086]
[1741596954016,0.05346408,126.08,126.07,20.1950345]
[1741596954215,0.05346408,126.08,126.07,28.1261345]
[1741596955008,0.05346408,126.08,126.07,7.9311]
[1741596955706,0.05346408,126.08,126.07,28.1261345]
[1741596956313,0.05346408,126.08,126.06,0.05660086]
[1741596956715,0.05346408,126.08,126.06,20.25163536]
[1741596956919,0.05346408,126.08,126.07,7.9311]
[1741596958520,0.05346408,126.08,126.06,28.18293536]
[1741596958721,174.36,126.09,126.06,20.25163536]
[1741596958910,174.02880602,126.09,126.08,20.1950345]
[1741596959115,174.02880602,126.09,126.06,0.05660086]
[1741596959116,174.02880602,126.09,126.06,20.25163536]
[1741596959516,174.02880602,126.09,126.06,28.18283536]
[1741596959918,174.02880602,126.09,126.06,20.25163536]
[1741596960220,174.08957867,126.09,126.07,7.931]
[1741596960913,174.08957867,126.09,126.06,20.25163536]
[1741596961420,174.08957867,126.09,126.07,7.9311]
[1741596961622,174.08957867,126.09,126.06,20.25163536]
[1741596961823,174.08957867,126.09,126.08,20.1950345]
[1741596962019,174.08957867,126.09,126.08,28.1255345]
[1741596962621,2.9956,126.15,126.08,20.1950345]
[1741596962822,2.9956,126.15,126.1,20.1950345]
[1741596963020,7.927,126.14,126.1,20.1950345]
[1741596963321,2.9956,126.15,126.1,20.1950345]
[1741596963523,2.9434,126.16,126.1,20.1950345]
[1741596963723,7.9263,126.15,126.1,20.1950345]
[1741596964019,0.05869599,126.14,126.13,7.9268]
[1741596964522,0.05869599,126.14,126.12,28.17707037]
[1741596964921,7.98569599,126.14,126.12,0.05423587]
[1741596965133,0.05869599,126.14,126.12,0.05423587]
[1741596965435,0.05869599,126.14,126.12,20.24927037]
[1741596965829,0.05869599,126.14,126.13,7.9273]
[1741596967134,174.4,126.17,126.12,40.44430487]
[1741596967433,174.4,126.17,126.16,7.9254]
[1741596967632,7.9239,126.19,126.16,7.9254]
[1741596967835,2.4033,126.2,126.13,2.295]
[1741596968329,7.9252,126.17,126.15,0.05964105]
[1741596969228,0.05589525,126.18,126.15,0.05964105]
[1741596970627,7.9254,126.16,126.15,0.05964105]
[1741596971532,7.925,126.17,126.15,0.05964105]
[1741596971928,0.05589525,126.18,126.15,0.05964105]
[1741596972332,0.05589525,126.18,126.15,7.98534105]
[1741596972935,0.05589525,126.18,126.16,7.9254]
[1741596973138,0.05589525,126.18,126.15,0.05964105]
[1741596973434,0.05589525,126.18,126.16,7.925]
[1741596973833,0.05589525,126.18,126.15,0.05964105]
[1741596974539,0.05589525,126.18,126.17,7.9248]
[1741596974728,0.05589525,126.18,126.16,20.1950345]
[1741596974933,0.05589525,126.18,126.07,22.5894345]
[1741596974934,20.25092975,126.18,126.07,22.5894345]
[1741596975131,7.9274,126.13,126.08,7.9304]
[1741596975336,20.1950345,126.16,126.07,23.96877218]
[1741596975535,7.9283,126.12,126.07,23.96877218]
[1741596976038,0.05203187,126.11,126.08,0.06030302]
[1741596979744,7.98083187,126.11,126.08,0.06030302]
[1741596980241,0.05203187,126.11,126.08,0.06030302]
[1741596980437,7.9293,126.1,126.08,0.06030302]
[1741596980632,0.05203187,126.11,126.08,0.06030302]
[1741596981043,7.9296,126.1,126.08,0.06030302]
[1741596981738,0.05203187,126.11,126.08,0.06030302]
[1741596981941,0.05203187,126.11,126.08,20.25533752]
[1741596982339,0.05203187,126.11,126.09,7.9293]
[1741596983743,0.05203187,126.11,126.08,0.06030302]
[1741596984250,7.9298,126.09,126.08,0.06030302]
[1741596985249,7.9321,126.06,126.03,2.3598]
[1741596985648,24.8341345,126.1,126.02,212.1950345]
[1741596985848,24.8341345,126.1,126.02,20.1950345]
[1741596986145,20.1950345,126.08,125.98,323.02304506]
[1741596986343,20.1950345,126.06,125.98,323.02304506]
[1741596986548,2.3379,126.05,125.98,323.02304506]
[1741596987059,176.6812,126.04,125.98,192.0]
[1741596987245,176.6812,126.04,125.97,7.9372]
[1741596987446,0.05154541,126.02,126.0,0.05640976]
[1741596988046,7.9349,126.01,126.0,0.05640976]
[1741596988248,7.9349,126.01,125.95,23.86249649]
[1741596988249,0.05154541,126.02,125.95,23.86249649]
[1741596988550,196.8762345,126.04,125.95,23.86249649]
[1741596988848,196.8762345,126.04,125.96,7.9376]
[1741596989150,196.8762345,126.04,125.95,3.66746199]
[1741596989547,0.05720301,126.01,125.98,0.0587434]
[1741596989744,7.99210301,126.01,125.98,0.0587434]
[1741596989949,0.05720301,126.01,125.98,0.0587434]
[1741596993760,0.05720301,126.01,126.0,7.9355]
[1741596994956,174.38,126.04,126.03,7.9336]
[1741597003565,174.38,126.04,126.02,20.25305001]
[1741597003763,174.38,126.04,126.02,28.18705001]
[1741597004265,174.38,126.04,126.02,0.05801551]
[1741597004459,7.9336,126.03,126.02,0.05801551]
[1741597006258,174.38,126.04,125.98,7.9365]
[1741597006453,2.2648,126.03,125.96,20.1950345]
[1741597006654,2.2648,126.03,125.97,1.44516917]
[1741597007065,2.2648,126.03,125.96,20.1950345]
[1741597007262,2.2648,126.03,125.97,1.44516916]
[1741597007462,0.05934759,126.01,125.98,0.05814616]
[1741597007861,20.1950345,126.0,125.92,7.9401]
[1741597008363,20.1950345,126.0,125.91,20.1950345]
[1741597008556,20.1950345,126.0,125.93,7.9398]
[1741597008958,7.9378,125.97,125.93,7.9398]
[1741597009257,0.05290719,125.98,125.91,20.1950345]
[1741597009457,20.1950345,125.98,125.89,3.66384575]
[1741597009665,0.05383135,125.96,125.9,21.64087784]
[1741597009862,0.05383135,125.96,125.91,1.44584334]
[1741597010263,0.05383135,125.96,125.93,7.9399]
[1741597010464,0.05383135,125.96,125.9,20.1950345]
[1741597010664,7.9387,125.95,125.9,20.1950345]
[1741597010865,7.9387,125.95,125.91,7.9408]
[1741597011066,7.99203135,125.96,125.9,20.1950345]
[1741597011262,0.05383135,125.96,125.92,7.9405]
[1741597011767,0.05383135,125.96,125.88,192.0]
[1741597011961,20.1950345,125.94,125.85,20.1950345]
[1741597012157,7.9416,125.91,125.85,20.1950345]
[1741597012362,174.54,125.93,125.88,7.9427]
[1741597012564,0.06093929,125.89,125.88,7.9427]
[1741597012766,174.54,125.93,125.85,20.1950345]
[1741597012971,0.05631372,125.9,125.85,20.1950345]
[1741597013272,0.05631372,125.9,125.87,20.1950345]
[1741597013572,0.05631372,125.9,125.89,7.9424]
[1741597013772,0.05631372,125.9,125.89,28.1374345]
[1741597014273,174.54,125.93,125.92,7.9405]
[1741597015264,2.3663,126.01,125.91,32.6708583]
[1741597015565,0.0528682,125.97,125.92,1.44574419]
[1741597015768,0.0528682,125.97,125.95,0.05542655]
[1741597016171,0.0528682,125.97,125.96,7.938]
[1741597016774,0.0528682,125.97,125.84,193.38226883]
[1741597016963,32.6708583,125.97,125.86,32.6708583]
[1741597017164,4.5196,125.96,125.87,1.4462261]
[1741597017362,7.9389,125.95,125.9,7.9414]
[1741597017568,4.5196,125.96,125.9,7.9414]
[1741597017869,4.5196,125.96,125.86,32.6708583]
[1741597018068,0.05125486,125.94,125.87,1.44630144]
[1741597018281,0.05125486,125.94,125.89,32.6708583]
[1741597018574,0.05125486,125.94,125.91,32.6708583]
[1741597018774,0.05125486,125.94,125.89,32.6708583]
[1741597019076,0.05125486,125.94,125.91,7.9407]
[1741597019275,0.05125486,125.94,125.89,32.6708583]
[1741597019464,0.05125486,125.94,125.9,1.44588188]
[1741597019671,0.05125486,125.94,125.89,32.6708583]
[1741597020076,0.05125486,125.94,125.9,1.44588749]
[1741597020480,0.05125486,125.94,125.92,32.6708583]
[1741597020671,0.05125486,125.94,125.93,9.38578749]
[1741597020979,0.05125486,125.94,125.93,7.9399]
[1741597021380,4.5692,126.0,125.97,7.9372]
[1741597021573,2.2819,126.0,125.97,7.9372]
[1741597021966,2.2819,126.0,125.98,7.9367]
[1741597022274,174.58,126.01,125.94,32.6708583]
[1741597022578,0.05565332,125.99,125.96,32.72451665]
[1741597023674,0.05565332,125.99,125.98,7.9368]
[1741597024174,174.58,126.01,125.98,32.6708583]
[1741597024480,7.9321,126.06,125.98,32.6708583]
[1741597024676,4.5139,126.07,125.98,224.6708583]
[1741597025278,4.5139,126.07,125.99,7.9358]
[1741597025480,0.06089865,126.04,126.01,0.04990971]
[1741597025683,7.9342,126.02,126.01,0.04990971]
[1741597026076,7.9342,126.03,126.01,0.04990971]
[1741597027080,7.99419865,126.04,126.01,0.04990971]
[1741597028379,7.9342,126.02,126.01,0.04990971]
[1741597028977,7.9339,126.03,126.01,0.04990971]
[1741597029179,0.06089865,126.04,126.01,0.04990971]
[1741597029785,0.06089865,126.04,126.01,7.98440971]
[1741597029983,0.06089865,126.04,126.01,0.04990971]
[1741597030184,7.9337,126.03,126.01,0.04990971]
[1741597030785,7.99399865,126.04,126.01,0.04990971]
[1741597031189,0.06089865,126.04,126.01,0.04990971]
[1741597032487,7.99419865,126.04,126.01,7.98450971]
[1741597032687,0.06089865,126.04,126.01,0.04990971]
[1741597033086,0.06089865,126.04,126.03,7.9336]
[1741597036087,0.06089865,126.04,126.02,2.2632]
[1741597036398,0.06089865,126.04,126.01,0.04990971]
[1741597036691,7.934,126.03,126.01,0.04990971]
[1741597036886,0.06089865,126.04,126.01,0.04990971]
[1741597037989,32.73175695,126.04,125.97,7.937]
[1741597038191,32.6708583,126.02,125.92,133.12694506]
[1741597038491,7.9364,125.99,125.93,1.44567949]
[1741597038690,7.9364,125.99,125.92,4.1696]
[1741597038887,7.9364,125.99,125.93,1.44567876]
[1741597039087,0.05267352,125.97,125.94,0.05794504]
[1741597039891,0.05267352,125.97,125.95,7.9386]
[1741597040293,0.05267352,125.97,125.94,0.05794504]
[1741597040788,0.05267352,125.97,125.95,7.9387]
[1741597041393,0.05267352,125.97,125.95,7.9382]
[1741597041793,0.05267352,125.97,125.95,32.6708583]
[1741597041989,1.9359,126.03,125.95,32.6708583]
[1741597042191,1.9359,126.03,125.97,32.6708583]
[1741597042392,9.8697,126.03,125.99,7.9357]
[1741597042590,1.9359,126.03,125.97,32.6708583]
[1741597042793,1.9359,126.03,125.95,192.0]
[1741597043094,1.9359,126.03,125.98,0.05467365]
[1741597043291,0.05306561,126.0,125.98,0.05467365]
[1741597044193,0.05306561,126.0,125.92,194.0657]
[1741597044398,34.8035583,126.02,125.93,7.9397]
[1741597044695,2.1327,126.02,125.92,194.0657]
[1741597044995,2.1327,126.02,125.93,34.11649311]
[1741597045193,2.1327,126.02,125.94,1.44563481]
[1741597045388,0.05353857,125.99,125.96,7.99057949]
[1741597045594,0.05353857,125.99,125.96,0.05317949]
[1741597045986,0.05353857,125.99,125.97,32.6708583]
[1741597046297,2.1424,126.06,125.98,1.44507013]
[1741597046495,2.1424,126.06,125.99,32.6708583]
[1741597047293,2.1424,126.06,125.98,192.0]
[1741597047294,0.06048088,126.04,126.01,32.73048579]
[1741597047590,0.06048088,126.04,126.03,7.9336]
[1741597049599,2.046,126.11,126.06,7.9317]
[1741597049901,1.937,126.13,126.06,7.9317]
[1741597050501,171.6628,126.07,126.06,7.9317]
[1741597050902,171.6628,126.07,126.05,40.65488364]
[1741597051103,171.6628,126.07,126.05,7.98402534]
[1741597051604,171.6628,126.07,126.05,0.05182534]
[1741597052107,171.6628,126.07,126.05,7.98372534]
[1741597052595,171.6628,126.07,126.05,0.05182534]
[1741597052803,171.6628,126.07,126.05,32.72268364]
[1741597054701,171.6628,126.07,126.06,7.9317]
[1741597054899,171.6628,126.07,126.05,32.72268364]
[1741597055307,171.6628,126.07,126.05,40.65468364]
[1741597055509,171.6628,126.07,126.05,32.72268364]
[1741597056109,171.6628,126.07,126.06,7.9317]
[1741597056300,171.6628,126.07,126.05,0.05182534]
[1741597057998,171.6628,126.07,126.06,7.9317]
[1741597058909,171.6628,126.07,126.05,7.98402534]
[1741597059516,171.6628,126.07,126.06,28.30739985]
[1741597061906,0.05440573,126.08,126.06,28.30719985]
[1741597062504,0.05440573,126.08,126.06,20.37569985]
[1741597064810,0.05440573,126.08,126.06,28.30739985]
[1741597065309,0.05440573,126.08,126.06,220.30739985]
[1741597065509,184.3246,126.13,126.07,7.9311]
[1741597065710,184.3246,126.13,126.08,20.37569985]
[1741597066211,176.397,126.13,126.06,212.37569985]
[1741597066406,176.397,126.13,126.06,192.0]
[1741597066810,0.05506489,126.11,126.08,0.05571281]
[1741597067305,7.9297,126.1,126.08,0.05571281]
[1741597067507,0.05506489,126.11,126.08,0.05571281]
[1741597067715,0.05506489,126.11,126.05,20.37569985]
[1741597067906,7.9305,126.08,126.05,20.37569985]
[1741597068101,176.397,126.13,126.05,20.37569985]
[1741597068508,7.9302,126.09,126.05,20.37569985]
[1741597068810,0.05561067,126.08,126.06,0.05813525]
[1741597069008,7.9306,126.08,126.06,0.05813525]
[1741597069210,0.05459871,126.08,126.06,0.05813525]
[1741597070416,0.05459871,126.08,126.06,7.98983525]
[1741597071108,0.05459871,126.08,126.06,0.05813525]
[1741597072408,7.98519871,126.08,126.06,0.05813525]
[1741597072803,0.05459871,126.08,126.06,0.05813525]
[1741597073014,7.9311,126.07,126.06,0.05813525]
[1741597073411,0.05459871,126.08,126.06,0.05813525]
[1741597076819,7.98519871,126.08,126.06,0.05813525]
[1741597077016,0.05459871,126.08,126.06,0.05813525]
[1741597079223,7.98509871,126.08,126.06,0.05813525]
[1741597080527,0.05459871,126.08,126.07,7.9311]
[1741597081720,0.05459871,126.08,126.06,7.98953525]
[1741597081918,0.05459871,126.08,126.06,0.05813525]
[1741597082826,0.05459871,126.08,126.07,28.30679985]
[1741597083026,0.05459871,126.08,126.06,0.05813525]
[1741597083422,0.05459871,126.08,125.97,346.85685188]
[1741597083622,20.37569985,126.08,125.99,20.37569985]
[1741597084022,7.934,126.03,125.99,28.31169985]
[1741597084229,20.37569985,126.08,125.99,7.936]
[1741597084526,7.9346,126.02,125.99,7.936]
[1741597084834,7.9346,126.02,125.99,7.98666843]
[1741597085030,7.98884305,126.02,125.99,7.98666843]
[1741597085419,0.05424305,126.02,125.99,7.98666843]
[1741597086030,0.05424305,126.02,126.0,7.9354]
[1741597086629,0.05424305,126.02,125.99,20.42636828]
[1741597086932,0.05424305,126.02,126.01,20.37569985]
[1741597087132,0.05424305,126.02,126.01,28.31059985]
[1741597089235,0.05424305,126.02,125.99,20.42636828]
[1741597089736,0.05424305,126.02,125.99,0.05066843]
[1741597089935,0.05424305,126.02,125.99,7.98646843]
[1741597091934,0.05424305,126.02,125.99,0.05066843]
[1741597092130,0.05424305,126.02,126.0,7.9351]
[1741597092438,0.05424305,126.02,125.99,0.05066843]
[1741597092638,0.05424305,126.02,125.99,20.42636828]
[1741597092940,0.05424305,126.02,126.01,20.37569985]
[1741597093140,0.05424305,126.02,126.01,28.31059985]
[1741597094039,2.0954,126.07,126.01,21.82029506]
[1741597094338,2.0954,126.07,126.04,20.37569985]
[1741597094637,1.9849,126.08,126.04,20.37569985]
[1741597095034,0.05360988,126.07,126.06,7.9315]
[1741597095836,0.05360988,126.07,126.05,0.05363234]
[1741597098153,0.05360988,126.07,126.06,7.9317]
[1741597098545,0.05360988,126.07,126.05,0.05363234]
[1741597098745,0.05360988,126.07,126.05,7.98573234]
[1741597098945,0.05360988,126.07,126.05,0.05363234]
[1741597099453,7.98490988,126.07,126.05,0.05363234]
[1741597100146,0.05360988,126.07,126.05,0.05363234]
[1741597100951,7.98470988,126.07,126.05,0.05363234]
[1741597101452,0.05360988,126.07,126.05,0.05363234]
[1741597103355,0.05360988,126.07,126.05,7.98583234]
[1741597103653,0.05360988,126.07,126.05,0.05363234]
[1741597103853,7.98510988,126.07,126.05,0.05363234]
[1741597104553,0.05360988,126.07,126.05,0.05363234]
[1741597107855,0.05360988,126.07,126.01,1.38032247]
[1741597108260,7.9321,126.06,126.03,7.9335]
[1741597108556,0.05360988,126.07,126.03,20.37569985]
[1741597108758,7.98500988,126.07,126.04,7.9329]
[1741597108957,7.98500988,126.07,126.04,7.99208081]
[1741597109152,0.05360988,126.07,126.04,7.99208081]
[1741597109359,0.05360988,126.07,126.04,0.05918081]
[1741597109661,0.05360988,126.07,126.04,20.43488066]
[1741597109851,0.05360988,126.07,126.05,7.932]
[1741597110158,0.05360988,126.07,126.04,20.43488066]
[1741597110349,7.98470988,126.07,126.04,7.99178081]
[1741597110750,0.05360988,126.07,126.05,7.932]
[1741597110945,0.05360988,126.07,126.04,0.05918081]
[1741597111159,0.05360988,126.07,126.04,20.43488066]
[1741597111353,0.05360988,126.07,126.06,7.9317]
[1741597111959,0.05360988,126.07,126.06,28.30739985]
[1741597115161,0.05360988,126.07,126.06,20.37569985]
[1741597115362,0.05360988,126.07,126.05,7.9323]
[1741597115757,0.05360988,126.07,126.06,7.9317]
[1741597116058,0.05360988,126.07,126.04,20.43488066]
[1741597116760,7.98480988,126.07,126.04,28.36758066]
[1741597116956,0.05360988,126.07,126.04,20.43488066]
[1741597117159,0.05360988,126.07,126.06,20.37569985]
[1741597117361,0.05360988,126.07,126.06,28.30739985]
[1741597117562,0.05360988,126.07,126.04,20.43488066]
[1741597118466,0.05360988,126.07,126.04,28.36728066]
[1741597118962,0.05360988,126.07,126.04,0.05918081]
[1741597119361,7.98520988,126.07,126.04,0.05918081]
[1741597119553,0.05360988,126.07,126.04,0.05918081]
[1741597120161,7.9318,126.06,126.04,0.05918081]
[1741597120668,7.9324,126.05,126.02,7.9338]
[1741597120967,2.0841,126.06,126.0,21.75615921]
[1741597121164,2.0841,126.06,126.04,7.9329]
[1741597121367,2.0841,126.06,126.02,20.37569985]
[1741597121762,22.42069985,126.12,126.02,20.37569985]
[1741597121968,0.05855089,126.05,126.04,20.37569985]
[1741597122170,1.9431,126.11,126.07,7.931]
[1741597122370,6.10860202,126.1,126.07,7.931]
[1741597122571,6.15902784,126.1,126.04,20.37569985]
[1741597122768,6.15902784,126.1,126.07,0.05188046]
[1741597122963,7.9298,126.09,126.07,0.05188046]
[1741597123163,0.05042582,126.1,126.07,0.05188046]
[1741597123563,7.9298,126.09,126.07,0.05188046]
[1741597123770,0.05042582,126.1,126.07,0.05188046]
[1741597124168,7.98022582,126.1,126.07,0.05188046]
[1741597124363,0.05042582,126.1,126.07,0.05188046]
[1741597124671,7.9298,126.09,126.07,0.05188046]
[1741597125665,7.9305,126.08,126.07,0.05188046]
[1741597126473,7.9302,126.09,126.07,0.05188046]
[1741597127565,7.9305,126.08,126.07,0.05188046]
[1741597127760,0.05042582,126.1,126.07,0.05188046]
[1741597127961,7.9305,126.09,126.07,0.05188046]
[1741597128673,7.9298,126.09,126.07,0.05188046]
[1741597128972,0.05042582,126.1,126.07,0.05188046]
[1741597129169,7.9305,126.08,126.07,0.05188046]
[1741597129378,0.05042582,126.1,126.01,21.7560497]
[1741597129675,7.932,126.06,126.03,7.9333]
[1741597129979,24.34589985,126.11,126.01,21.7560497]
[1741597130277,7.9302,126.09,126.06,7.9317]
[1741597130472,0.05045339,126.07,126.06,7.9317]
[1741597130672,3.9702,126.11,126.03,20.37569985]
[1741597130976,0.05170625,126.08,126.07,7.9309]
[1741597131476,0.05170625,126.08,126.05,20.37569985]
[1741597131877,7.98220625,126.08,126.05,20.37569985]
[1741597132078,7.98220625,126.08,126.05,28.30779985]
[1741597132281,0.05170625,126.08,126.05,20.37569985]
[1741597132672,0.05170625,126.08,126.06,7.9314]
[1741597133475,0.05170625,126.08,126.05,20.37569985]
[1741597133878,0.05170625,126.08,126.06,7.9316]
[1741597134784,0.05170625,126.08,126.07,7.9311]
[1741597136281,0.05170625,126.08,126.07,20.96909983]
[1741597136682,0.05170625,126.08,126.07,13.03799983]
[1741597137182,0.05170625,126.08,126.07,20.96909983]
[1741597138283,0.05170625,126.08,126.03,195.44134878]
[1741597138590,0.05170625,126.08,126.05,13.03799983]
[1741597138776,0.05170625,126.08,126.07,13.03799983]
[1741597138977,0.05170625,126.08,126.07,20.96909983]
[1741597140991,0.05170625,126.08,126.07,13.03799983]
[1741597141388,0.05170625,126.08,126.05,13.03799983]
[1741597142391,0.05170625,126.08,126.05,20.37519445]
[1741597142579,0.05170625,126.08,126.07,7.9311]
[1741597142779,0.05170625,126.08,126.07,28.30629445]
[1741597154007,182.3878,126.13,126.07,20.37519445]
[1741597154301,7.9284,126.12,126.07,20.37519445]
[1741597154702,7.9284,126.12,126.08,7.9299]
[1741597155201,0.06004378,126.11,126.09,7.9880894]
[1741597156004,0.06004378,126.11,126.09,0.0585894]
[1741597157900,0.06004378,126.11,126.09,7.9880894]
[1741597158104,0.06004378,126.11,126.09,0.0585894]
[1741597160009,0.06004378,126.11,126.1,20.37519445]
[1741597160305,0.06004378,126.11,126.09,0.0585894]
[1741597161799,0.06004378,126.11,126.09,7.9883894]
[1741597162201,0.06004378,126.11,126.09,21.02320777]
[1741597162506,0.06004378,126.11,126.09,13.09340777]
[1741597163703,0.06004378,126.11,126.09,0.0585894]
[1741597163905,13.09486215,126.11,126.06,13.03481837]
[1741597164204,2.198,126.1,126.06,13.03481837]
[1741597164604,2.198,126.1,126.08,20.96501837]
[1741597164802,2.198,126.1,126.08,13.03481837]
[1741597165005,2.2509688,126.1,126.08,13.03481837]
[1741597165306,2.2509688,126.1,126.07,20.96541837]
[1741597166509,10.1802688,126.1,126.07,20.96541837]
[1741597167009,2.2509688,126.1,126.01,1.38026772]
[1741597167208,2.198,126.1,126.05,13.03481837]
[1741597167508,0.0517391,126.07,126.01,1.38026772]
[1741597167808,0.0517391,126.07,126.02,1.44444514]
[1741597168000,0.0517391,126.07,126.06,7.9317]
[1741597168711,0.0517391,126.07,126.06,20.96651837]
[1741597170402,0.0517391,126.07,126.06,13.03481837]
[1741597171413,0.0517391,126.07,126.06,20.96651837]
[1741597173402,0.0517391,126.07,126.06,13.03481837]
[1741597173806,0.0517391,126.07,126.06,20.96651837]
[1741597176006,176.6852,126.13,126.1,7.9287]
[1741597176213,176.6852,126.13,126.11,13.03481837]
[1741597177212,184.66519641,126.13,126.11,13.09020102]
[1741597177610,176.73779641,126.13,126.11,13.09020102]
[1741597178118,174.51259641,126.13,126.11,21.01880102]
[1741597178811,174.51259641,126.13,126.12,20.96281837]
[1741597179123,0.05259641,126.13,126.12,20.96281837]
[1741597180519,4.2743,126.18,126.12,13.03481837]
[1741597180720,4.2743,126.18,126.15,13.03481837]
[1741597181513,4.32720119,126.18,126.15,13.09545818]
[1741597181719,2.24670119,126.18,126.15,13.09545818]
[1741597181919,7.9252,126.17,126.15,13.09545818]
[1741597182724,2.24670119,126.18,126.16,13.03481837]
[1741597183822,10.17120119,126.18,126.16,13.03481837]
[1741597184620,2.24670119,126.18,126.17,13.03481837]
[1741597185417,2.24670119,126.18,126.16,20.95981837]
[1741597185617,10.17120119,126.18,126.16,13.03481837]
[1741597186517,7.9248,126.17,126.15,13.09545818]
[1741597186721,2.24670119,126.18,126.15,0.06063981]
[1741597187222,7.9254,126.16,126.15,0.06063981]
[1741597187623,7.9251,126.17,126.15,13.09545818]
[1741597188125,2.24670119,126.18,126.15,13.09545818]
[1741597188331,10.17100119,126.18,126.16,13.03481837]
[1741597189022,2.24670119,126.18,126.16,13.03481837]
[1741597189222,7.9248,126.17,126.16,13.03481837]
[1741597195026,15.28151956,126.18,126.15,0.06063981]
[1741597195325,13.03481837,126.16,126.12,13.03481837]
[1741597195523,15.22861837,126.18,126.13,13.03481837]
[1741597195723,2.1938,126.18,126.14,13.03481837]
[1741597196024,2.1938,126.18,126.16,13.03481837]
[1741597196324,2.24779476,126.18,126.16,13.08215762]
[1741597196529,7.9253,126.17,126.16,13.08215762]
[1741597197221,7.9253,126.17,126.16,0.04733925]
[1741597197422,7.9267,126.14,126.13,13.03481837]
[1741597199322,0.05497961,126.15,126.11,13.03481837]
[1741597199524,7.9283,126.12,126.11,13.03481837]
[1741597199835,0.05497961,126.15,126.09,193.37958375]
[1741597200130,13.03481837,126.14,126.09,13.03481837]
[1741597200334,0.0507297,126.13,126.09,13.03481837]
[1741597200532,2.2686297,126.13,126.09,13.03481837]
[1741597201227,0.0507297,126.13,126.11,13.03481837]
[1741597201424,0.0507297,126.13,126.12,7.928]
[1741597201627,0.0507297,126.13,126.12,20.96281837]
[1741597201829,0.0507297,126.13,126.12,13.03481837]
[1741597203327,7.9286,126.11,126.07,2.1723]
[1741597203637,13.03481837,126.15,126.09,13.03481837]
[1741597203936,7.9271,126.14,126.11,13.03481837]
[1741597204138,0.05977984,126.13,126.11,13.03481837]